Cogmind - Beta 16.1 @@@ ROGUE MODE // 2026.04.06 @ 20:33:30 Player: Elxavo Result: Destroyed by 4B-HL3(R) with Subdweller Machine Gun Performance ------------- Evolutions (0) 0 Regions Visited (2) 400 Robots Destroyed (8) 40 Value Destroyed (187) 187 Prototype IDs (0) 0 Alien Tech Used (0) 0 Bonus (0) 0 TOTAL SCORE: 627 Bonus ------- None Cogmind --------- Core Integrity 0/250 Matter 239/300 Energy 125/125 System Corruption 0% Temperature Cool (0) Movement Treading (160) Location -10/Subcaves Parts ------- > --- POWER (1) -------- Light Ion Engine > --- PROPULSION (2) --- Light Treads Light Treads > --- UTILITY (2) ------ Small Storage Unit Seismic Detector > --- WEAPON (2) ------- Small Laser Subdweller Machine Gun > --- INVENTORY (8) ---- Aluminum Leg Wheel Mining Laser Multitool Peak State ------------ > --- POWER ------------ Light Ion Engine > --- PROPULSION ------- Aluminum Leg Aluminum Leg > --- UTILITY ---------- Small Storage Unit Seismic Detector > --- WEAPON ----------- EM Pulse Gun Battle Cannon > --- INVENTORY -------- Light Ion Engine Light Treads Light Treads Wheel Small Laser Subdweller Machine Gun Mining Laser Multitool [Rating: 9] Favorites ----------- Power Light Ion Engine Engine Light Ion Engine Propulsion Aluminum Leg Treads Light Treads Leg Aluminum Leg Utility Small Storage Unit Device Seismic Detector Storage Small Storage Unit Weapon Small Laser Energy Gun Small Laser Ballistic Gun Subdweller Machine Gun Ballistic Cannon Battle Cannon Special Weapon Mining Laser Build | -11 -10 -10 ------- Run | Yrd Mat Sub Slots Evolved . | . . . Power . | . . . Propulsion . | . . . Utility . | . . . Weapon . | . . . Parts Attached 15 | 7 . 8 Power 2 | 1 . 1 Engine 2 | 1 . 1 Core . | . . . Reactor . | . . . Propulsion 4 | 2 . 2 Treads 2 | . . 2 Leg 2 | 2 . . Wheel . | . . . Hover . | . . . Flight . | . . . Utility 3 | 2 . 1 Device 2 | 1 . 1 Storage 1 | 1 . . Processor . | . . . Hackware . | . . . Protection . | . . . Artifact . | . . . Weapon 6 | 2 . 4 Energy Gun 3 | 2 . 1 Energy Cannon . | . . . Ballistic Gun 1 | . . 1 Ballistic Cannon 1 | . . 1 Launcher . | . . . Special Weapon 1 | . . 1 Impact Weapon . | . . . Slashing Weapon . | . . . Piercing Weapon . | . . . Special Melee Weapon . | . . . Unidentified Prototypes . | . . . Parts Lost 5 | . . 5 Power 1 | . . 1 Propulsion 1 | . . 1 Utility 1 | . . 1 Weapon 2 | . . 2 Highest Loss Streak 4 | . . 4 To Critical Strikes . | . . . Average Backups 7 | 4 8 7 Power . | . 1 . Propulsion 2 | 1 3 2 Utility . | . 2 . Weapon 1 | 1 2 2 Tool/Special . | . . . Unused Backups 3 | . . 3 Power . | . . . Propulsion 1 | . . 1 Utility 1 | . . 1 Weapon . | . . . Tool/Special 1 | . . 1 Average Slot Usage (%) 99 | . 100 99 Engine 13 | . 14 13 Leg 27 | . 28 26 Device 14 | . 14 14 Storage 14 | . 14 14 Energy Gun 19 | . 28 17 Ballistic Cannon 5 | . . 6 Special Weapon 2 | . . 3 Peak Build Rating 9 | 7 7 9 Average Rating 7 | 6 7 7 On Entrance 4 | . 7 7 Avg Prop Armor Cover (%) . | . . . Naked Turns . | . . . Heaviest Build 15 | 11 11 15 Greatest Support 20 | 20 20 20 Greatest Overweight (x) 2 | 2 . 1 Average Overweight (x) . | . . . Largest Inventory Capacity 8 | 8 8 8 Average Capacity 7 | 7 8 8 Most Carried 8 | 8 8 8 Average Carried 7 | 3 8 7 Final Capacity 8 | 8 8 8 Final Carried 8 | 8 8 4 Class Distribution -------------------- 100% | Mutant Dominant Class ---------------- Mutant | -10/Materials Mutant | -10/Subcaves Resources | -11 -10 -10 ----------- Run | Yrd Mat Sub Matter Collected 340 | 270 . 70 Remotely . | . . . Salvage Created 263 | 110 . 153 Parts 16 | 9 . 7 Haulers Intercepted . | . . . Recyclers Shooed 1 | 1 . . Parts Field Recycled . | . . . Retrieved Matter . | . . . Parts Self-Destructed 3 | . . 3 Prevented . | . . . Parts Restored . | . . . Kills | -11 -10 -10 ------- Run | Yrd Mat Sub Combat Hostiles Destroyed 4 | . . 4 Guns 2 | . . 2 Cannons 1 | . . 1 AOE 1 | . . 1 Classes Destroyed 3 | 2 . 1 Tunneler 3 | 3 . . Recycler 1 | 1 . . Subdweller 4 | . . 4 Best Kill Streak 3 | 3 . 1 Combat Bots Only 1 | . . 1 Max Kills in Single Turn 1 | 1 . 1 Gunslinging . | . . . Exploded 1 | . . 1 Melee . | . . . Uniques/NPCs Destroyed . | . . . Combat | -11 -10 -10 -------- Run | Yrd Mat Sub Hostile Shots Fired 56 | . . 56 Missed 16 | . . 16 Hits 40 | . . 40 Projectile 40 | . . 40 Critical Strikes 1 | . . 1 Damage Taken 885 | . . 885 Core 271 | . . 271 Absorbed by Shields . | . . . Core Remaining (%) 100 | 100 . . Volleys Fired 49 | 13 . 36 Largest 2 | 2 . 2 Hottest 100 | 80 . 100 Shots Fired 92 | 26 . 66 Gun 79 | 26 . 53 Cannon 9 | . . 9 Launcher . | . . . Special 4 | . . 4 Kinetic 17 | . . 17 Thermal 59 | 26 . 33 Explosive . | . . . Electromagnetic 16 | . . 16 Robot Hit Streak 21 | 5 . 21 Robot Miss Streak 2 | 1 . 2 Penetration Max . | . . . Secondary Targets . | . . . Shots Hit Robots 68 | 17 . 51 Core Hits 18 | 5 . 13 Critical Kills . | . . . Critical Parts Destroyed . | . . . Critical Strikes 2 | . . 2 Corrupt 2 | . . 2 Melee Attacks . | . . . Impact . | . . . Slashing . | . . . Piercing . | . . . Sneak Attacks . | . . . Combat Hostiles . | . . . Follow-up Attacks . | . . . Damage Inflicted 971 | 201 . 770 Guns 780 | 201 . 579 Cannons 141 | . . 141 Explosions 50 | . . 50 Melee . | . . . Ramming . | . . . Kinetic 312 | . . 312 Thermal 522 | 201 . 321 Explosive . | . . . Electromagnetic 137 | . . 137 Impact . | . . . Slashing . | . . . Piercing . | . . . Highest Corruption . | . . . Average Corruption . | . . . Corruption Purged . | . . . Corruption Blocked . | . . . Overload Shots . | . . . Overflow Damage . | . . . Projectiles . | . . . Explosions . | . . . Melee . | . . . Knockbacks 1 | . . 1 Impact . | . . . Kinetic 1 | . . 1 Secondary . | . . . Self-Inflicted Damage . | . . . Shots . | . . . Rammed . | . . . Targets Rammed . | . . . Kicked . | . . . Crushed . | . . . Highest Temperature 72 | 72 . . Average Temperature 26 | 26 . . Received Heat Transfer 108 | . . 108 Siege Activations . | . . . Martial Activations . | . . . Shielding Activations . | . . . Robots Disrupted . | . . . Combat Hostiles . | . . . Robots Corrupted . | . . . Combat Hostiles . | . . . Parts Fried . | . . . Impact Corruptions . | . . . Robots Melted . | . . . Combat Hostiles . | . . . Parts Melted 1 | . . 1 Heat Transferred 1075 | 450 . 625 Parts Sabotaged . | . . . Parts Stolen . | . . . Parts Stripped . | . . . Power Chain Reactions 1 | . . 1 Alert | -11 -10 -10 ------- Run | Yrd Mat Sub Maximum Alert Level . | . . . Low Security (%) 100 | 100 100 . Level 1 . | . . . Level 2 . | . . . Level 3 . | . . . Level 4 . | . . . Level 5 . | . . . High Security . | . . . Max Security . | . . . Peak Influence 5 | 5 . . Initial . | . . . Average . | . . . Influence Increases 20 | 20 . . Destroy 0b10 Robot/NC 20 | 20 . . Influence Decreases 20 | 20 . . Time Decay 20 | 20 . . Squads Dispatched . | . . . Investigation . | . . . Extermination . | . . . Reinforcement . | . . . Assault . | . . . Garrison . | . . . Intercept . | . . . Searches Triggered . | . . . Construction Impeded . | . . . Haulers Reinforced . | . . . Active Scanning Responses . | . . . Cargo Convoy Interrupts . | . . . Stealth | -11 -10 -10 --------- Run | Yrd Mat Sub Distress Signals . | . . . Communications Jammed . | . . . Distress Signals . | . . . Times Spotted 9 | . . 9 Peak Tracking Total 3 | . . 3 Tactical Retreats 1 | . . 1 Traps | -11 -10 -10 ------- Run | Yrd Mat Sub Traps Triggered . | . . . Indirectly . | . . . Trap Hack Attempts . | . . . Triggered . | . . . Disarmed . | . . . Reprogrammed . | . . . Reused . | . . . Traps Extracted . | . . . Installed . | . . . Triggered . | . . . Machines | -11 -10 -10 ---------- Run | Yrd Mat Sub Machines Disabled . | . . . Max in Single Turn . | . . . Machines Repaired . | . . . Machines Dismantled . | . . . Machines Sabotaged . | . . . Overloaded Fab Kills . | . . . Hacking | -11 -10 -10 --------- Run | Yrd Mat Sub Machines Accessed 1 | . 1 . Terminals 1 | . 1 . Fabricators . | . . . Repair Stations . | . . . Recycling Units . | . . . Scanalyzers . | . . . Garrison Access . | . . . Total Hacks 2 | . 2 . Successful . | . . . Failed 2 | . 2 . Catastrophic . | . . . Database Lockouts . | . . . Manual . | . . . Terminals 2 | . 2 . Fabricators . | . . . Repair Stations . | . . . Recycling Units . | . . . Scanalyzers . | . . . Garrison Access . | . . . Terminal Hacks . | . . . Fabricator Hacks . | . . . Repair Station Hacks . | . . . Recycling Unit Hacks . | . . . Scanalyzer . | . . . Garrison Access Hacks . | . . . Unauthorized Hacks . | . . . Terminals . | . . . Fabricators . | . . . Repair Stations . | . . . Recycling Units . | . . . Scanalyzers . | . . . Garrison Access . | . . . Data Cores Recovered . | . . . Used . | . . . Hacking Detections 1 | . 1 . Full Trace Events . | . . . Feedback Events . | . . . Feedback Blocked . | . . . Robot Schematics Acquired . | . . . Robots Built . | . . . Authchips . | . . . Time . | . . . Total Robot Build Rating . | . . . Part Schematics Acquired . | . . . Parts Built . | . . . Authchips . | . . . Time . | . . . Total Part Build Rating . | . . . Part Studies Acquired . | . . . Parts Repaired . | . . . Time . | . . . Parts Recycled . | . . . Recycled Matter . | . . . Retrieved Matter . | . . . Retrieved Components . | . . . Parts Scanalyzed . | . . . Part Schematics Acquired . | . . . Parts Damaged . | . . . Bothacking | -11 -10 -10 ------------ Run | Yrd Mat Sub Used RIF Installer . | . . . Robots Hacked . | . . . Non-combat . | . . . Combat . | . . . Robot Hacks Applied . | . . . Relay Couplers Released . | . . . Fabnet Peak Effective % . | . . . Robots Rewired . | . . . Allies Hacked . | . . . Hacks Repelled . | . . . Allies | -11 -10 -10 -------- Run | Yrd Mat Sub Total Allies . | . . . Largest Group . | . . . Highest-Rated Group . | . . . Highest-Rated Ally . | . . . Total Orders . | . . . Ally Attacks . | . . . Total Damage . | . . . Kills . | . . . Allies Corrupted . | . . . Allies Melted . | . . . Intel | -11 -10 -10 ------- Run | Yrd Mat Sub Active Infowar (turns) 913 | 91 111 711 Seismic 913 | 91 111 711 Robot Analysis Total . | . . . Derelict Logs Recovered 1 | . . 1 Drone Launches . | . . . Drone Recoveries . | . . . Exploration | -11 -10 -10 ------------- Run | Yrd Mat Sub Turns Passed 976 | 153 111 712 Spaces Moved 584 | 83 25 476 Core 7 | 7 . . Treads . | . . . Legs 577 | 76 25 476 Wheels . | . . . Hover . | . . . Flight . | . . . Fastest Speed 50 | 50 120 120 Average Speed 119 | 116 120 120 Slowest Speed 190 | 150 120 190 Overloaded Moves . | . . . Propulsion Burnouts . | . . . Robots Hopped . | . . . Potential Cave-ins . | . . . Cave-ins Triggered . | . . . Exploration Rate (%) 10 | 4 4 24 Regions Visited 2 Branch Regions 1 Pre-discovered Areas 1 | . . 1 Known Exits Taken . | . . . Unknown Exits Taken 2 | 1 1 . Scrap Searched 3 | . . 3 Spaces Dug . | . . . Terrain Destroyed 2 | . . 2 Melee . | . . . Projectile . | . . . AOE 2 | . . 2 Terrain Rammed . | . . . Walls Destroyed . | . . . Machines Disabled . | . . . Actions | -11 -10 -10 --------- Run | Yrd Mat Sub Total 756 | 110 106 540 Wait 96 | . 82 14 Move 582 | 82 24 476 Hop . | . . . Pick Up 11 | 8 . 3 Fast Attach 7 | 7 . . Attach 5 | . . 5 Detach . | . . . Swap 4 | . . 4 Drop 2 | . . 2 Fire 49 | 13 . 36 Melee . | . . . Ram . | . . . Kick . | . . . Crush . | . . . Escape Stasis . | . . . Rewire . | . . . Trap . | . . . Miscellaneous . | . . . Route ------- -11/Scrapyard -10/Materials -10/Subcaves History --------- Turn | Location | Event 10 | -11/Scrapyard | Discovered new exit (range 16) 154 | -11/Scrapyard | Entered Materials 255 | -10/Materials | Discovered new exit (range 6) 265 | -10/Materials | Entered Subcaves 266 | -10/Subcaves | Approached by a straggling Scientist 272 | -10/Subcaves | Learned location of Zion (-7) 272 | -10/Subcaves | Met a Zionite searching for "candidates" 307 | -10/Subcaves | Build established: Mutant 830 | -10/Subcaves | Disturbed a concealed Subdweller 932 | -10/Subcaves | A Subdweller sparked back to life 932 | -10/Subcaves | A Subdweller sparked back to life 932 | -10/Subcaves | A Subdweller sparked back to life 948 | -10/Subcaves | Core integrity fell below 50% 974 | -10/Subcaves | Core integrity fell below 20% 977 | -10/Subcaves | Destroyed by 4B-HL3(R) with Subdweller Machine Gun Last Messages --------------- 00644_ O7-DRW(O) puts together Shrapnel Trap. 00817_ Searching scrap... 00817_ Found Sub. Machine Gun. 00817_ Found 69 Matter. 00818_ Searching scrap... 00818_ Found Piercing Trap. 00818_ Found 52 Matter. 00820_ Dropped Tractor Beam. 00822_ Acquired Sub. Machine Gun. 00830_ XG-H7D(R) angrily emerges from the Twisted Machinery. 00839_ XG-H7D(R) destroyed. 00861_ Acquired 10 matter. 00920_ Acquired 5 matter. 00932_ 2S-KPZ(R) creaks and sparks as it begins to move. 00932_ 5B-K5N(R) creaks and sparks as it begins to move. 00932_ 4B-HL3(R) creaks and sparks as it begins to move. 00938_ Aluminum Leg destroyed. 00939_ Battle Cannon destroyed. 00949_ Lgt. Ion Engine destroyed. 00950_ EM Pulse Gun destroyed. Map ----- +----------------------------------------------------+ | ?????????????????????????????????????????????## # | | ??????????????????????????????????????????????###? | | ?????????????????????????????????????????????????? | | ?????????????????????????????????????????????????? | | ?????????????????????????????????????????????????? | | ?????????????????????????????????????????????????? | | ?????????????????????????????????????????????????? | | ?????????????????????????????????????????????????? | | ?????????????????????????????????????????????????? | | ??????????????????????????????????????????????#### | | ??????????????????????????????????????????????#"& | | ??????????????????????????????????????????????#%%# | | ??????????????????????????????????????????????#### | | ??????????????????????????????????????????????###" | | ??????????????????????????????????????????????# ## | | ????????????? ????????###???????????????####?## " | | ????????????? ???????? ##?????????????# ### | | ???????????? ? ##????? ##????????????# | | ???????????? " ????# #????????????# | | ????????????? " ???# #????????????## | | ??????????" " ### ##????? ????## % | | ??????????" % #????# ?????#### | | ??????????????# %% #????# ????????# | | ???????????? " R##????# ?????###### | | ?????????? ##RR##????# ?????# ### | | ?????????? #??#@ ##???# ??????# ### | | ??????????? #### #???# ??????## ## | | ???????????? % ## #???# #??????## # | | ???????????? ## ##?## #??????## # | | ???????????? ???? # # ###% %#??????# ## | | ????????????????????#?# %% ##?????# ## | | ??????????????????????# % ####??# % | | ?????????????????????# # # # # ##### | | ??????????????????????#### #####?# ## ## | | ?????????????????????????# #????# % | | ?????????????????????????# ####### | | ?????????????????????????## % ## # ## ## | | ?????????????????????????# ########? | | ?????????????????????????# # ### # ##???????? | | ?????????????????????????######?#########????????? | | ?????????????????????????????????????????????????? | | ?????????????????????????????????????????????????? | | ?????????????????????????????????????????????????? | | ?????????????????????????????????????????????????? | | ?????????????????????????????????????????????????? | | ?????????????????????????????????????????????????? | | ?????????????????????????????????????????????????? | | ?????????????????????????????????????????????????? | | ?????????????????????????????????????????????????? | | ?????????????????????????????????????????????????? | +----------------------------------------------------+ Best States ------------- Heat Dissipation 25 Energy Generation 10 Energy Capacity 125 Matter Stores 300 Matter Capacity 300 Sight Range 16 Terrain Scan Density 10 Evasion (%) 55 Recoil Reduction 2 Item Schematics ----------------- None Robot Schematics ------------------ None Fabricated ------------ Nothing Repaired ---------- Nothing Studied --------- None Alien Tech Used ----------------- None Achievements -------------- None Challenges ------------ None Game ------ Seed SchematicAntimatterAxe Manual? 0 Play Time 00:13:54 Cumulative 63.0 hours Start 2026.04.06 @ 20:21:17 End 2026.04.06 @ 20:33:30 Sessions 1 Manual Loads 0 Difficulty Rogue Special Mode None Game No. 81 Rogue 81 Adventurer 0 Explorer 0 Win Type - Total 0 Types 0/0/0/0/0/0/0/0/0/0 Lore% 30 Gallery% 23 Achievement% 17 Wizard Run 0 Options --------- Layout 0 ASCII 0 Keyboard 0 Movement Mouse Keybinds 0 Fullscreen 1 Font 18/SmallcapsGlow Map View 76x50 Zoom Use 0% Tactical HUD 1 Map Filters NONE Filters LOW_CONTRAST(13,24,33) Steam 1 RUN: 68f36b41-99ad-4fb1-b6b5-19a4f852e383